bitfinex-derivatives/quotes_ETHF0:USTF0_20250621
["timestamp","ask_amount","ask_price","bid_price","bid_amount"]
[1750521162579,2.24879,2418.9,2418.7,8.08641]
[1750521162780,2.24879,2418.9,2418.8,0.8267]
[1750521163482,2.24879,2418.9,2418.7,8.0864]
[1750521163887,0.8267,2418.8,2418.7,7.4447]
[1750521164380,2.24879,2418.9,2418.7,7.4447]
[1750521164586,2.24879,2418.9,2418.8,0.8267]
[1750521165180,4.73615,2419.0,2418.9,0.82666]
[1750521165586,0.82676,2418.6,2418.5,26.89668]
[1750521165788,0.82675,2418.7,2418.6,0.82676]
[1750521165981,0.82672,2418.8,2418.7,0.82673]
[1750521166180,0.82672,2418.8,2418.6,0.82674]
[1750521166388,0.82672,2418.8,2418.7,0.82673]
[1750521167289,3.9095,2419.0,2418.9,0.82666]
[1750521167985,3.9095,2419.0,2418.8,0.82666]
[1750521168384,4.73615,2419.0,2418.5,36.07937]
[1750521168691,4.73615,2419.0,2418.9,0.82666]
[1750521169189,3.9095,2419.0,2418.9,0.82666]
[1750521169599,4.73615,2419.0,2418.9,0.82666]
[1750521170798,3.9095,2419.0,2418.9,0.82666]
[1750521171094,4.73613,2419.0,2418.9,0.82666]
[1750521171296,3.9095,2419.0,2418.9,0.82666]
[1750521172392,4.73613,2419.0,2418.9,0.82666]
[1750521172592,3.9095,2419.0,2418.9,0.82666]
[1750521172985,4.73613,2419.0,2418.9,0.82666]
[1750521173995,3.9095,2419.0,2418.9,0.82666]
[1750521174293,0.7017,2419.0,2418.9,0.82666]
[1750521174491,1.52833,2419.0,2418.9,0.82666]
[1750521175799,0.7017,2419.0,2418.9,0.82666]
[1750521176491,2.5962366,2419.5,2418.8,11.89053]
[1750521176696,0.82649,2419.4,2419.3,0.8265]
[1750521177293,0.82649,2419.4,2419.2,0.82654]
[1750521177495,0.82652,2419.3,2419.2,0.82654]
[1750521178098,0.82652,2419.4,2419.2,0.82654]
[1750521178300,4.0805166,2419.5,2419.3,0.82652]
[1750521178695,3.2540366,2419.5,2419.4,0.82649]
[1750521178998,0.6578,2419.5,2419.4,0.82649]
[1750521179702,3.2078,2419.6,2419.5,0.82646]
[1750521180102,0.6572,2419.8,2419.7,0.82639]
[1750521180399,1.48355,2419.8,2419.6,0.8264]
[1750521180794,1.48355,2419.8,2419.5,1.3315]
[1750521181199,1.48355,2419.8,2419.7,0.82639]
[1750521181492,1.48355,2419.8,2419.5,1.3315]
[1750521181493,0.6572,2419.8,2419.5,1.3315]
[1750521181697,0.82641,2419.7,2419.5,2.15793]
[1750521181898,3.4226466,2419.7,2419.5,2.15793]
[1750521182397,0.82642,2419.6,2419.5,1.3315]
[1750521182597,0.82642,2419.6,2419.5,6.615]
[1750521182799,0.82642,2419.6,2419.5,7.44146]
[1750521183003,0.82642,2419.6,2419.4,0.82647]
[1750521183304,0.82642,2419.6,2419.5,7.44146]
[1750521183605,3.4226466,2419.7,2419.5,7.44146]
[1750521184001,3.4226466,2419.7,2419.6,0.82642]
[1750521184002,0.82639,2419.7,2419.6,0.82642]
[1750521184196,1.48358,2419.8,2419.6,0.82642]
[1750521184700,0.82639,2419.7,2419.5,6.615]
[1750521184906,0.82642,2419.6,2419.5,6.615]
[1750521185701,0.82649,2419.5,2419.3,0.82649]
[1750521186003,3.4226966,2419.5,2419.4,6.614]
[1750521186204,3.4226966,2419.5,2419.4,7.44049]
[1750521186396,3.4226966,2419.5,2419.4,6.614]
[1750521187407,3.4226966,2419.5,2419.4,7.44049]
[1750521188505,2.5962366,2419.7,2419.4,7.44047]
[1750521188705,0.82646,2419.5,2419.4,7.44047]
[1750521189709,0.82646,2419.5,2419.4,6.614]
[1750521189906,0.82649,2419.4,2419.3,0.8265]
[1750521190108,0.6778,2419.4,2419.3,7.4405]
[1750521192202,5.8040366,2419.9,2419.3,6.614]
[1750521192409,0.82642,2419.7,2419.6,0.82641]
[1750521192799,1.49907,2419.8,2419.7,0.82639]
[1750521193407,0.82641,2419.7,2419.5,0.6977]
[1750521193605,0.82642,2419.6,2419.5,1.52413]
[1750521193913,0.82642,2419.6,2419.5,0.82646]
[1750521194210,3.4226466,2419.7,2419.6,0.82642]
[1750521194813,0.82643,2419.6,2419.5,0.82643]
[1750521195402,3.4226466,2419.7,2419.6,0.82642]
[1750521196309,0.82642,2419.6,2419.5,0.82643]
[1750521196522,0.82649,2419.4,2419.3,0.8265]
[1750521196713,2.5962366,2419.4,2419.3,7.4385]
[1750521196913,1.3778,2419.5,2419.4,0.82649]
[1750521197911,2.20426,2419.5,2419.4,0.82649]
[1750521198116,1.3778,2419.5,2419.4,0.82649]
[1750521198320,7.3156766,2419.6,2419.5,0.82646]
[1750521198618,4.03424,2419.6,2419.5,0.82646]
[1750521199417,3.2078,2419.6,2419.5,0.82646]
[1750521203523,0.6727,2419.8,2419.7,0.82639]
[1750521203710,1.49905,2419.8,2419.7,0.82639]
[1750521203915,0.6727,2419.8,2419.7,0.82639]
[1750521204211,1.49905,2419.8,2419.7,0.82639]
[1750521204614,0.82635,2419.8,2419.7,0.82639]
[1750521205924,5.8040366,2419.9,2419.8,0.82635]
[1750521206120,6.6303766,2419.9,2419.8,0.82635]
[1750521206325,3.2078,2419.9,2419.8,0.82635]
[1750521206521,4.35701779,2419.9,2419.8,0.82635]
[1750521208020,4.35701779,2419.9,2419.8,7.43835]
[1750521209119,5.18333779,2419.9,2419.8,7.43835]
[1750521209822,4.35701779,2419.9,2419.8,7.43835]
[1750521210422,6.95325439,2419.9,2419.5,0.82643]
[1750521210728,2.5962366,2419.7,2419.6,0.82642]
[1750521211530,0.82646,2419.5,2419.4,11.29157]
[1750521211722,1.48704,2419.6,2419.5,0.82646]
[1750521212123,2.87374,2419.6,2419.5,0.82646]
[1750521212429,2.87374,2419.6,2419.4,0.82647]
[1750521212629,2.0473,2419.6,2419.5,0.82646]
[1750521212830,2.87372,2419.6,2419.5,0.82646]
[1750521213630,0.82646,2419.5,2419.4,0.82646]
[1750521213826,0.82649,2419.4,2419.3,7.4385]
[1750521214029,2.87374,2419.6,2419.5,0.82646]
[1750521214229,1.48702,2419.6,2419.5,0.82646]
[1750521214431,3.4226366,2419.7,2419.6,0.82642]
[1750521214831,0.8264,2419.7,2419.6,0.82642]
[1750521215027,0.82639,2419.7,2419.6,0.8264]
[1750521215929,1.50367,2419.8,2419.7,0.82639]
[1750521216128,2.65279067,2419.8,2419.7,0.82639]
[1750521216624,1.82642067,2419.8,2419.7,0.82639]
[1750521216831,6.6303766,2419.9,2419.8,0.82635]
[1750521217029,5.18370129,2419.9,2419.8,0.82635]
[1750521217231,4.35736129,2419.9,2419.8,0.82635]
[1750521217425,4.35736129,2419.9,2419.7,1.46967]
[1750521217630,0.82635,2419.8,2419.7,1.46967]
[1750521218234,5.8040366,2419.9,2419.8,0.82635]
[1750521218434,7.779878,2419.9,2419.8,0.82635]
[1750521218637,7.779878,2419.9,2419.7,1.46966]
[1750521218840,6.6303566,2419.9,2419.7,1.46966]
[1750521219335,2.06555,2420.3,2419.7,4.67747]
[1750521219336,0.82635,2419.8,2419.7,4.67747]
[1750521219529,3.2078,2420.3,2420.2,0.82622]
[1750521219726,0.82628,2420.1,2419.8,1.409]
[1750521219930,0.82628,2420.1,2419.9,7.2745]
[1750521220439,0.82629,2420.0,2419.9,0.6625]
[1750521220738,0.82629,2420.0,2419.9,7.2745]
[1750521221035,0.82635,2419.8,2419.7,3.8511]
[1750521221331,0.82635,2419.8,2419.7,4.67749]
[1750521221537,0.82635,2419.8,2419.7,11.28849]
[1750521222836,0.82635,2419.8,2419.7,3.8511]
[1750521223034,0.82635,2419.8,2419.7,10.4621]
[1750521223239,0.82642,2419.7,2419.6,0.82642]
[1750521223439,0.82642,2419.7,2419.6,7.43742]
[1750521223638,0.82639,2419.7,2419.6,7.4374]
[1750521224536,1.53366,2419.8,2419.7,0.82639]
[1750521224935,0.82639,2419.7,2419.6,7.4324]
[1750521225637,0.82639,2419.7,2419.6,6.606]
[1750521226135,0.82639,2419.7,2419.6,7.43242]
[1750521226840,1.53368,2419.8,2419.7,0.82639]
[1750521227031,0.82639,2419.7,2419.6,7.4324]
[1750521227745,0.82639,2419.7,2419.6,6.606]
[1750521227943,0.82642,2419.6,2419.5,0.82643]
[1750521228144,0.82642,2419.6,2419.5,7.43243]
[1750521229145,0.82646,2419.5,2419.4,9.8138]
[1750521229345,0.82644,2419.6,2419.5,0.82644]
[1750521229939,0.82646,2419.5,2419.4,11.32807]
[1750521230240,0.82645,2419.6,2419.5,0.82644]
[1750521231338,0.82646,2419.5,2419.4,11.32807]
[1750521231544,0.7073,2419.8,2419.4,13.0978366]
[1750521231850,0.82641,2419.7,2419.6,0.8264]
[1750521235862,0.82642,2419.6,2419.5,1.52883]
[1750521239054,0.8264,2419.7,2419.6,0.82639]
[1750521239660,0.7073,2419.8,2419.5,1.52883]
[1750521239661,0.82642,2419.6,2419.5,1.52883]
[1750521240264,0.82642,2419.7,2419.6,0.8264]
[1750521240766,0.82642,2419.6,2419.5,1.52883]
[1750521242457,0.7073,2419.8,2419.5,0.7024]
[1750521242663,0.82641,2419.7,2419.6,0.82639]
[1750521243265,3.2078,2420.0,2419.6,2.5962366]
[1750521243466,0.82634,2419.9,2419.8,0.82633]
[1750521243867,3.2078,2420.4,2419.8,8.5642166]
[1750521244161,0.82623,2420.2,2420.1,4.03402]
[1750521244368,0.82623,2420.2,2420.1,10.64002]
[1750521244559,3.8791,2420.4,2420.1,9.8138]
[1750521244760,4.70528,2420.4,2420.3,0.82618]
[1750521245162,3.8791,2420.4,2420.3,0.82618]
[1750521245364,4.70525,2420.4,2420.3,0.82618]
[1750521245761,3.8791,2420.4,2420.3,0.82618]
[1750521246666,1.49745,2420.4,2420.3,0.82618]
[1750521246970,0.6713,2420.4,2420.3,0.82618]
[1750521247372,0.82614,2420.5,2420.4,0.82615]
[1750521247569,0.82614,2420.5,2420.4,7.43215]
[1750521247772,0.82614,2420.5,2420.4,6.606]
[1750521247972,0.82614,2420.5,2420.4,7.43215]
[1750521248171,0.82614,2420.5,2420.4,6.606]
[1750521249265,0.7112,2420.6,2420.4,6.606]
[1750521249465,2.0406,2420.6,2420.4,6.606]
[1750521249674,3.4223466,2420.5,2420.4,6.606]
[1750521250876,4.7517466,2420.5,2420.4,6.606]
[1750521251376,0.82618,2420.3,2420.2,1.52052]
[1750521251578,0.82618,2420.3,2420.2,8.12552]
[1750521252477,0.82618,2420.3,2420.2,7.2993]
[1750521253880,0.82618,2420.3,2420.2,0.6943]
[1750521254081,0.82618,2420.3,2420.2,7.2993]
[1750521254380,0.82618,2420.3,2420.2,8.12552]
[1750521257274,0.82618,2420.3,2420.2,7.2993]
[1750521257474,0.82618,2420.3,2420.2,6.605]
[1750521258384,0.82618,2420.3,2420.2,0.82622]
[1750521258586,0.82618,2420.3,2420.2,32.78622]
[1750521259982,0.82618,2420.3,2420.2,31.96]
[1750521260884,0.82622,2420.2,2420.1,4.03404]
[1750521261086,1.52722,2420.2,2420.1,35.99304]
[1750521261392,1.52722,2420.2,2420.1,35.1668]
[1750521261984,1.52722,2420.2,2420.1,35.99305]
[1750521264581,2.5962366,2420.6,2420.3,0.82618]
[1750521264782,0.82618,2420.4,2420.3,0.82618]
[1750521267090,0.82618,2420.4,2420.3,26.18318]
[1750521267293,1.51572,2420.5,2420.4,0.82615]
[1750521267487,1.51572,2420.5,2420.4,6.599]
[1750521267791,0.82612,2420.5,2420.4,8.11645]
[1750521269190,0.82612,2420.5,2420.4,7.2903]
[1750521269395,0.82612,2420.5,2420.4,6.599]
[1750521269885,0.82612,2420.5,2420.4,7.42515]
[1750521271588,0.82609,2420.6,2420.5,0.82609]
[1750521272286,0.6567,2420.7,2420.6,0.82608]
[1750521272682,0.6567,2420.7,2420.6,2.19478]
[1750521273497,1.48275,2420.7,2420.6,2.19478]
[1750521274592,0.6567,2420.7,2420.6,2.19478]
[1750521274890,0.826,2420.9,2420.8,0.82599]
[1750521275090,1.4843,2420.9,2420.8,0.82599]
[1750521276694,0.826,2420.9,2420.8,0.82599]
[1750521277496,3.2078,2421.4,2420.8,27.9462366]
[1750521277797,1.51861,2421.4,2421.3,0.82584]
[1750521277999,1.51861,2421.4,2421.3,7.42384]
[1750521278199,1.51861,2421.4,2421.3,6.598]
[1750521278398,0.82588,2421.2,2421.1,27.5654]
[1750521278698,0.82586,2421.3,2421.1,34.1634]
[1750521278901,0.82586,2421.3,2421.2,0.82588]
[1750521279202,0.82586,2421.3,2421.1,34.16339]
[1750521279394,0.82586,2421.3,2421.2,0.82588]
[1750521280293,1.51863,2421.4,2421.3,0.82584]
[1750521280700,3.2078,2421.7,2421.3,5.0]
[1750521280903,0.82575,2421.6,2421.4,32.76879]
[1750521281201,0.82576,2421.6,2421.4,32.76879]
[1750521281404,0.82577,2421.5,2421.4,32.76879]
[1750521282301,0.82575,2421.6,2421.5,0.82576]
[1750521282502,0.82575,2421.6,2421.5,6.598]
[1750521283201,4.03353,2421.7,2421.5,7.42377]
[1750521283404,3.2078,2422.0,2421.6,25.344]
[1750521283602,0.82565,2421.9,2421.8,0.82566]
[1750521283802,0.82565,2421.9,2421.7,0.82568]
[1750521284004,4.03343,2422.0,2421.8,6.598]
[1750521284202,0.6623,2421.9,2421.8,7.42366]
[1750521285096,3.2078,2422.3,2421.8,6.598]
[1750521285303,3.2078,2422.6,2422.4,0.82546]
[1750521285501,0.82548,2422.4,2422.3,0.82549]
[1750521285804,0.82549,2422.4,2422.2,7.42253]
[1750521286005,0.6425,2422.3,2422.2,7.42253]
[1750521286509,0.6425,2422.3,2422.2,10.63033]
[1750521286909,0.6425,2422.3,2422.2,10.63034]
[1750521287712,1.468,2422.3,2422.2,3.2078]
[1750521287902,1.468,2422.3,2422.2,35.1318]
[1750521288097,1.468,2422.3,2422.2,9.7958]
[1750521288303,1.468,2422.3,2422.2,10.62133]
[1750521288503,0.82544,2422.5,2422.4,0.82544]
[1750521288806,3.2078,2422.6,2422.2,9.7958]
[1750521288807,4.71671,2422.6,2422.3,1.50047]
[1750521289000,0.82545,2422.5,2422.3,0.675]
[1750521289203,0.82547,2422.4,2422.3,0.675]
[1750521289403,0.82545,2422.5,2422.3,0.675]
[1750521289604,0.82545,2422.5,2422.3,1.50049]
[1750521289999,3.8913,2422.6,2422.3,0.675]
[1750521290207,0.82545,2422.5,2422.3,1.50049]
[1750521290409,4.71673,2422.6,2422.4,0.82547]
[1750521290617,0.82544,2422.5,2422.3,0.675]
[1750521290913,0.82544,2422.5,2422.4,0.6952]
[1750521291100,3.8913,2422.6,2422.4,1.52065]
[1750521291302,1.3035,2422.9,2422.5,9.7948]
[1750521291508,0.82533,2422.8,2422.6,0.82539]
[1750521291714,0.82536,2422.7,2422.5,10.62022]
[1750521292110,0.82533,2422.8,2422.7,0.82535]
[1750521292312,0.694,2423.0,2422.6,0.82538]
[1750521292514,0.82543,2422.5,2422.4,26.0272]
[1750521292707,0.82543,2422.5,2422.3,0.675]
[1750521292708,0.82547,2422.4,2422.3,0.675]
[1750521293012,0.8255,2422.3,2422.2,3.2078]
[1750521293414,0.89397599,2422.3,2422.2,35.1258]
[1750521293714,0.89397599,2422.3,2422.2,9.7938]
[1750521294104,3.49021259,2422.3,2422.2,9.7938]
[1750521294308,2.31717599,2422.3,2422.2,3.2078]
[1750521295509,0.89397599,2422.3,2422.2,9.7938]
[1750521297417,0.8255,2422.3,2422.2,9.7938]
[1750521298516,0.89397599,2422.3,2422.2,9.7938]
[1750521299611,0.89397599,2422.3,2422.2,10.61933]
[1750521300515,0.8255,2422.3,2422.2,10.61933]
[1750521300714,0.8255,2422.3,2422.2,9.7938]
[1750521301410,0.89397599,2422.3,2422.2,9.7938]
[1750521303119,0.89397599,2422.3,2422.2,3.2078]
[1750521303318,0.89397599,2422.3,2422.2,9.7938]
[1750521303818,0.89397599,2422.3,2422.2,10.464]
[1750521305718,0.06847599,2422.3,2422.2,13.8857666]
[1750521305912,0.06847599,2422.3,2422.2,15.8478666]
[1750521306123,0.8254,2422.6,2422.5,0.8254]
[1750521306319,0.8254,2422.6,2422.5,10.6192]
[1750521306823,0.8254,2422.6,2422.5,9.7938]
[1750521307212,0.8254,2422.6,2422.5,10.61923]
[1750521307413,0.8254,2422.6,2422.5,9.7938]
[1750521307925,0.8254,2422.6,2422.5,3.2078]
[1750521308220,0.8255,2422.3,2422.2,29.8521]
[1750521308408,0.8255,2422.3,2422.2,3.2078]
[1750521308409,3.4217366,2422.3,2422.2,3.2078]
[1750521308716,0.8256,2422.0,2421.9,3.2078]
[1750521308916,3.4218366,2422.0,2421.9,3.2078]
[1750521309516,0.8256,2422.0,2421.9,3.2078]
[1750521309924,0.6712,2422.2,2421.9,3.2078]
[1750521310221,0.82557,2422.1,2422.0,7.41059]
[1750521310713,0.8256,2422.0,2421.9,3.2078]
[1750521310919,0.8256,2422.0,2421.9,9.7938]
[1750521311719,0.82558,2422.1,2422.0,0.8256]
[1750521312018,0.82558,2422.1,2421.9,10.61941]
[1750521312223,0.82559,2422.1,2422.0,0.8256]
[1750521312519,0.8256,2422.0,2421.9,10.61941]
[1750521312825,0.8256,2422.0,2421.9,9.7938]
[1750521313311,0.8256,2422.0,2421.9,10.61944]
[1750521313717,0.8256,2422.0,2421.9,9.7938]
[1750521313918,0.8256,2422.0,2421.9,10.61944]
[1750521314118,0.8256,2422.0,2421.9,7.41164]
[1750521314421,0.82558,2422.1,2422.0,0.82559]
[1750521314913,0.8256,2422.0,2421.9,7.41163]
[1750521316122,0.82559,2422.1,2422.0,0.8256]
[1750521316327,0.06847599,2422.3,2421.9,9.1822366]
[1750521316517,0.82555,2422.2,2422.1,0.82555]
[1750521316711,0.8256,2422.0,2421.9,9.7938]
[1750521316916,0.82559,2422.1,2422.0,0.8256]
[1750521317323,0.8256,2422.0,2421.9,10.61941]
[1750521317817,0.82559,2422.1,2422.0,0.8256]
[1750521318217,0.6578,2422.2,2422.1,0.82557]
[1750521318525,0.82554,2422.2,2421.9,9.7938]
[1750521318729,0.82558,2422.1,2421.9,11.1415]
[1750521318925,0.82556,2422.2,2422.1,0.82556]
[1750521320424,0.8256,2422.0,2421.9,10.61942]
[1750521321125,0.82559,2422.1,2422.0,0.82559]
[1750521321328,0.8256,2422.0,2421.9,10.61942]
[1750521322832,0.8256,2422.0,2421.9,10.61944]
[1750521323026,0.8256,2422.0,2421.9,9.7938]
[1750521323329,0.8256,2422.0,2421.9,10.61944]
[1750521325829,0.82558,2422.1,2422.0,0.82557]
[1750521326631,0.8256,2422.0,2421.9,10.61941]
[1750521327529,0.8256,2422.0,2421.9,7.41161]
[1750521329230,0.82559,2422.1,2422.0,0.82557]
[1750521329831,0.8256,2422.0,2421.9,7.41161]
[1750521330735,0.82559,2422.1,2422.0,0.82557]
[1750521332732,0.06847599,2422.2,2422.1,0.82557]
[1750521333033,0.06847599,2422.2,2422.1,6.6296066]
[1750521334937,0.6578,2422.3,2422.2,0.82553]
[1750521335131,0.6578,2422.3,2422.2,8.17713]
[1750521335339,1.47966,2422.5,2422.4,0.82547]
[1750521335537,1.47965,2422.5,2422.4,0.82547]
[1750521336935,0.82537,2422.7,2422.6,0.82537]
[1750521337130,0.659,2422.7,2422.6,7.47537]
[1750521337832,0.82531,2422.9,2422.8,0.82531]
[1750521338035,0.82533,2422.8,2422.7,1.51644]
[1750521338235,0.82533,2422.8,2422.7,0.6911]
[1750521338437,1.55279599,2422.9,2422.7,0.6911]
[1750521338633,0.72747599,2422.9,2422.8,0.82533]
[1750521338827,0.72747599,2422.9,2422.8,1.15664117]
[1750521339039,0.82524,2423.1,2422.7,6.65991]
[1750521339233,1.48424,2423.1,2423.0,0.82524]
[1750521341336,0.82526,2423.0,2422.9,7.47527]
[1750521341839,1.48425,2423.1,2423.0,0.82526]
[1750521342234,1.3258,2423.3,2423.0,3.2078]
[1750521342436,0.6693,2423.1,2423.0,3.2078]
[1750521342830,1.3258,2423.3,2423.0,3.2078]
[1750521343038,0.82522,2423.2,2423.1,0.82522]
[1750521343232,0.82516,2423.3,2423.2,0.82516]
[1750521343935,0.6693,2423.4,2423.1,0.6828]
[1750521344239,0.6693,2423.4,2423.3,0.82516]
[1750521344430,1.49443,2423.4,2423.3,0.82516]
[1750521344830,0.6693,2423.4,2423.3,0.82516]
[1750521345337,1.49443,2423.4,2423.3,0.82516]
[1750521345530,0.6693,2423.4,2423.3,0.82516]
[1750521346130,4.03288,2423.6,2423.5,0.82509]
[1750521346335,0.6809,2423.7,2423.6,0.82506]
[1750521346735,0.82502,2423.7,2423.6,0.7116]
[1750521346930,0.82502,2423.8,2423.7,0.82502]
[1750521347136,3.2078,2423.9,2423.7,0.82502]
[1750521347332,4.03276,2423.9,2423.8,6.63]
[1750521347840,0.82495,2424.0,2423.9,0.82495]
[1750521348041,0.82496,2423.9,2423.8,6.63]
[1750521348431,3.2078,2424.5,2424.2,0.82483]
[1750521348635,0.82479,2424.4,2424.3,6.63]
[1750521348847,0.82479,2424.4,2424.3,9.55312]
[1750521349037,0.82479,2424.4,2424.3,8.16642]
[1750521349244,0.6809,2424.7,2424.3,7.3416]
[1750521349535,0.82475,2424.6,2424.4,0.82477]
[1750521349731,0.82474,2424.6,2424.4,0.82477]
[1750521350137,1.5056,2424.7,2424.5,0.82475]
[1750521350345,1.5056,2424.7,2424.6,6.629]
[1750521350528,0.6809,2424.7,2424.6,10.66152]
[1750521350734,0.82466,2424.8,2424.7,0.82468]
[1750521351042,0.82466,2424.8,2424.6,13.2577366]
[1750521351237,0.82463,2424.9,2424.7,0.82467]
[1750521351438,3.2078,2425.2,2424.8,2.5962366]
[1750521351646,0.82458,2425.0,2424.9,6.629]
[1750521352440,3.2078,2425.2,2424.9,6.629]
[1750521352650,0.82458,2425.0,2424.9,6.629]
[1750521352937,0.82472,2424.6,2424.5,0.6706]
[1750521353143,0.82472,2424.6,2424.5,7.2986]
[1750521353939,0.82472,2424.6,2424.5,0.6706]
[1750521354240,0.82479,2424.4,2424.3,3.8643]
[1750521354439,0.82479,2424.4,2424.3,3.2078]
[1750521354640,0.82489,2424.1,2424.0,6.628]
[1750521356046,0.82499,2423.8,2423.7,3.2078]
[1750521356248,0.89346599,2423.8,2423.7,10.66082]
[1750521356546,0.06847599,2423.8,2423.7,10.66082]
[1750521358950,0.06847599,2423.8,2423.7,9.8358]
[1750521359248,0.06847599,2423.8,2423.7,36.17682]
[1750521360740,0.06847599,2423.8,2423.4,3.2078]
[1750521360946,0.06847599,2423.8,2423.7,4.03282]
[1750521361144,0.06847599,2423.8,2423.7,10.66082]
[1750521363439,0.06847599,2423.8,2423.4,9.8358]
[1750521363753,0.06847599,2423.8,2423.7,0.82502]
[1750521364851,0.89346599,2423.8,2423.7,0.82502]
[1750521365251,0.06847599,2423.8,2423.7,0.82502]
[1750521366853,0.06847599,2423.8,2423.7,10.66082]
[1750521374053,0.6985,2424.2,2424.1,0.82489]
[1750521374356,0.6985,2424.2,2424.1,10.66069]
[1750521374859,0.82476,2424.5,2424.4,0.82476]
[1750521375056,1.52826,2424.5,2424.4,0.82476]
[1750521375252,0.7035,2424.5,2424.4,0.82476]
[1750521376154,0.7035,2424.5,2424.4,7.45276]
[1750521376758,0.7035,2424.5,2424.4,10.66056]
[1750521377864,0.82467,2424.8,2424.7,0.82467]
[1750521378057,0.82464,2424.9,2424.7,0.82467]
[1750521378257,2.14474,2424.9,2424.8,0.82465]
[1750521379262,0.82465,2424.8,2424.7,0.82466]
[1750521379461,0.82472,2424.6,2424.5,1.46734]
[1750521379962,1.3201,2424.9,2424.6,0.82472]
[1750521379963,0.82471,2424.7,2424.6,0.82472]
[1750521380158,0.82468,2424.8,2424.6,0.82472]
[1750521380358,0.82468,2424.7,2424.6,0.82472]
[1750521381153,0.82468,2424.7,2424.5,0.6426]
[1750521381364,0.82472,2424.6,2424.5,1.46733]
[1750521383273,0.82472,2424.6,2424.5,33.65533]
[1750521385179,0.82471,2424.7,2424.6,0.82471]
[1750521386273,0.82475,2424.5,2424.4,3.2078]
[1750521386466,0.82475,2424.5,2424.4,35.3838]
[1750521386667,0.89322599,2424.5,2424.4,35.3838]
[1750521386872,0.89322599,2424.5,2424.4,36.20859]
[1750521387075,0.06847599,2424.5,2424.4,36.20859]
[1750521387876,0.06847599,2424.5,2424.4,38.79217926]
[1750521390880,0.06847599,2424.5,2424.4,36.20859]
[1750521392075,0.6455,2424.8,2424.7,0.82468]
[1750521392279,0.6455,2424.8,2424.7,29.49248]
[1750521392778,3.2078,2425.3,2424.7,28.6678]
[1750521393084,0.646,2425.3,2425.2,0.82451]
[1750521393270,3.2078,2425.6,2425.2,49.57625]
[1750521393471,2.78592345,2426.4,2425.2,49.57625]
[1750521393472,0.82433,2425.8,2425.5,3.2078]
[1750521393784,0.82438,2425.6,2425.5,3.2078]
[1750521393985,0.82446,2425.4,2425.1,10.73333]
[1750521394175,2.0869,2425.5,2425.2,0.8245]
[1750521394379,0.8245,2425.3,2425.1,3.2078]
[1750521394575,7.25317001,2425.5,2425.0,6.7]
[1750521394780,1.47053,2425.2,2424.9,33.23159]
[1750521394978,1.4197,2425.1,2424.9,33.23159]
[1750521395478,2.24425,2425.1,2424.9,32.407]
[1750521395781,1.4197,2425.1,2425.0,0.82458]
[1750521396478,1.4197,2425.1,2424.9,33.23159]
[1750521396783,1.4197,2425.1,2425.0,0.82458]
[1750521397183,0.646,2425.2,2425.1,0.82455]
[1750521400384,1.9813,2425.2,2425.1,0.82455]
[1750521400583,1.9813,2425.2,2424.9,6.7]
[1750521400584,1.9813,2425.2,2424.9,33.1886]
[1750521400773,1.9813,2425.2,2424.7,3.2078]
[1750521400978,0.82464,2424.9,2424.8,32.364]
[1750521401585,2.11124,2424.9,2424.8,32.364]
[1750521403180,2.11124,2424.9,2424.8,6.7]
[1750521403891,0.82468,2424.7,2424.6,6.7]
[1750521404695,2.17288,2424.7,2424.6,6.7]
[1750521404983,2.17288,2424.7,2424.4,51.54756]
[1750521404984,0.82475,2424.5,2424.4,3.2078]
[1750521405894,0.89322599,2424.5,2424.4,3.2078]
[1750521406992,5.89322599,2424.5,2424.4,3.2078]
[1750521407189,0.82489,2424.1,2424.0,10.73272]
[1750521408097,0.82484,2424.3,2424.2,0.82484]
[1750521408393,0.82487,2424.2,2424.1,0.82487]
[1750521408898,0.82484,2424.3,2424.2,0.82485]
[1750521409092,2.0494,2424.4,2424.3,0.82482]
[1750521409093,0.7012,2424.4,2424.3,0.82482]
[1750521409292,0.7012,2424.4,2424.3,4.03262]
[1750521409797,1.52599,2424.4,2424.3,4.03262]
[1750521409989,0.7012,2424.4,2424.3,4.03262]
[1750521410292,1.52599,2424.4,2424.3,3.2078]
[1750521410595,0.82487,2424.2,2424.1,0.82488]
[1750521410794,0.82489,2424.1,2424.0,4.7105]
[1750521410998,0.82488,2424.2,2424.1,0.82488]
[1750521411386,1.3952,2424.3,2424.0,10.6636]
[1750521411590,0.82487,2424.2,2424.1,0.82487]
[1750521411996,1.3952,2424.3,2424.0,11.4885]
[1750521412294,0.82489,2424.1,2424.0,11.4885]
[1750521412485,0.82488,2424.2,2424.1,0.82488]
[1750521413295,2.22004,2424.3,2424.2,0.82485]
[1750521413598,1.526,2424.4,2424.3,0.82482]
[1750521413793,0.82483,2424.3,2424.2,0.82484]
[1750521413998,0.7012,2424.4,2424.1,0.82486]
[1750521414200,0.82485,2424.2,2424.1,0.82486]
[1750521414496,0.82487,2424.2,2424.1,0.82487]
[1750521414799,0.82487,2424.2,2424.1,1.50317]
[1750521415292,0.82484,2424.3,2424.2,0.82484]
[1750521416190,1.526,2424.4,2424.3,0.82482]
[1750521416590,0.82483,2424.3,2424.2,0.82483]
[1750521417801,0.82485,2424.2,2424.1,1.50316]
[1750521417996,0.82485,2424.2,2424.1,0.6783]
[1750521418699,0.82485,2424.2,2424.1,1.50319]
[1750521420892,0.82485,2424.2,2424.1,0.6783]